bitfinex-derivatives/quotes_ETHF0:USTF0_20250411
["timestamp","ask_amount","ask_price","bid_price","bid_amount"]
[1744384269186,1.28381,1558.6,1558.5,0.00963297]
[1744384269494,4.49161,1558.6,1558.5,0.00963297]
[1744384269879,9.49161,1558.6,1558.5,0.00963297]
[1744384270184,4.49161,1558.6,1558.5,0.00963297]
[1744384270380,1.28381,1558.6,1558.5,0.00963297]
[1744384271088,4.49161,1558.6,1558.5,0.00963297]
[1744384273984,3.2078,1558.6,1558.5,1.29353297]
[1744384274284,0.00963297,1558.8,1558.7,1.28373]
[1744384274881,0.00963297,1558.8,1558.7,6.28373]
[1744384276484,0.00963297,1558.8,1558.7,9.49153]
[1744384276683,1.29328297,1558.8,1558.7,9.49153]
[1744384276884,0.00963297,1558.8,1558.7,9.49153]
[1744384277093,1.28346,1559.1,1559.0,1.28348]
[1744384277389,1.28357,1558.9,1558.8,3.8755]
[1744384277892,1.28368,1558.8,1558.5,5.95463297]
[1744384278193,0.00963297,1558.8,1558.7,1.28373]
[1744384278585,0.00963297,1558.8,1558.7,6.28373]
[1744384278891,0.00963297,1558.8,1558.7,1.28373]
[1744384279392,0.00963297,1558.8,1558.7,5.87393]
[1744384279796,3.2078,1559.3,1559.1,1.28335]
[1744384279994,7.8754,1559.3,1559.0,1.28343]
[1744384280290,7.8754,1559.3,1559.1,1.28334]
[1744384280291,1.28336,1559.2,1559.1,1.28334]
[1744384280487,1.28344,1559.1,1559.0,1.28342]
[1744384280682,5.95097,1559.2,1559.1,1.28335]
[1744384280886,3.21743297,1559.3,1559.2,1.28332]
[1744384281084,0.00963297,1559.3,1559.2,1.28332]
[1744384282589,0.00963297,1559.3,1559.2,6.28332]
[1744384282983,17.01315332,1559.9,1559.8,1.28283]
[1744384283183,21.49785332,1559.9,1559.8,1.28283]
[1744384283392,1.28286,1559.8,1559.7,1.28285]
[1744384283697,8.97532,1559.9,1559.8,1.28283]
[1744384283988,7.6925,1559.9,1559.8,1.28283]
[1744384284194,10.45769,1560.1,1559.7,0.00963297]
[1744384284390,1.28283,1559.8,1559.7,42.09247297]
[1744384284589,5.92361,1559.9,1559.8,1.28283]
[1744384284790,4.6408,1559.9,1559.8,1.28283]
[1744384285190,5.92354,1559.9,1559.8,1.28283]
[1744384285495,1.28283,1559.8,1559.7,40.80963297]
[1744384285698,5.92361,1559.9,1559.8,1.28283]
[1744384285889,1.28273,1560.0,1559.9,1.28274]
[1744384286491,5.92353,1560.0,1559.9,1.28274]
[1744384286695,1.28283,1559.8,1559.7,42.09250297]
[1744384286894,1.28283,1559.8,1559.7,40.80963297]
[1744384287393,10.68313,1559.8,1559.7,0.00963297]
[1744384287695,14.53273,1559.8,1559.7,2.97e-06]
[1744384288289,20.46473,1559.8,1559.7,2.97e-06]
[1744384288693,1.2834,1559.1,1559.0,3.8674]
[1744384288894,1.28338,1559.2,1559.0,5.15088]
[1744384289089,1.2834,1559.1,1559.0,5.15088]
[1744384289592,1.28339,1559.2,1559.0,5.15088]
[1744384289798,4.4003,1559.1,1559.0,5.15083]
[1744384289999,5.6837,1559.1,1559.0,5.15083]
[1744384290203,5.6837,1559.1,1559.0,3.8674]
[1744384290393,1.28348,1559.0,1558.9,0.00963297]
[1744384290696,6.02068,1559.0,1558.9,0.00963297]
[1744384290899,11.02068,1559.0,1558.9,0.00963297]
[1744384291293,16.95468,1559.0,1558.9,0.00963297]
[1744384291797,17.45816874,1559.0,1558.9,2.97e-06]
[1744384291999,17.45816874,1559.0,1558.1,61.78494692]
[1744384292000,3.20949,1558.7,1558.1,61.78494692]
[1744384292195,1.28409,1558.3,1558.1,61.78494692]
[1744384292400,3.2078,1558.2,1558.1,19.70077692]
[1744384292603,1.28423,1558.1,1557.9,1.28437]
[1744384292901,9.22921,1558.2,1557.8,44.9399]
[1744384293105,4.7372,1558.1,1558.0,1.28431]
[1744384293397,0.00963297,1558.2,1558.1,1.28423]
[1744384293992,0.00963297,1558.2,1558.0,1.28427]
[1744384294197,0.00963297,1558.2,1558.1,1.28423]
[1744384294594,0.00963297,1558.2,1558.1,6.28423]
[1744384296099,0.00963297,1558.2,1558.1,1.28423]
[1744384298606,0.00963297,1558.2,1558.1,9.49203]
[1744384299108,5.72288,1558.7,1558.1,8.2078]
[1744384299307,4.4391,1558.7,1558.6,1.28381]
[1744384299505,3.2078,1558.8,1558.7,1.28373]
[1744384299808,9.04013,1559.0,1558.9,1.28357]
[1744384300106,4.49128,1559.0,1558.9,1.28357]
[1744384300495,1.28357,1558.9,1558.8,1.29321297]
[1744384300706,1.28357,1558.9,1558.8,0.00963297]
[1744384300906,5.83237,1558.9,1558.8,0.00963297]
[1744384301609,10.83237,1558.9,1558.8,0.00963297]
[1744384302109,14.66347,1558.9,1558.8,0.00963297]
[1744384302711,9.66347,1558.9,1558.8,0.00963297]
[1744384303103,9.66347,1558.9,1558.8,1.29328297]
[1744384303297,9.66347,1558.9,1558.8,0.00963297]
[1744384304319,9.66347,1558.9,1558.8,1.29328297]
[1744384304515,8.3799,1558.9,1558.8,1.29328297]
[1744384304715,7.22507297,1559.1,1558.8,0.00963297]
[1744384304919,7.22507297,1559.1,1557.9,70.64098]
[1744384304920,6.41656,1559.0,1558.3,3.20997]
[1744384305119,3.21016,1558.3,1557.4,3.2078]
[1744384305316,8.7191,1558.2,1557.6,1.28458]
[1744384305522,3.2078,1558.0,1557.7,4.8259]
[1744384305720,5.97643,1557.9,1557.7,4.8259]
[1744384305919,1.28447,1557.8,1557.7,4.8259]
[1744384306218,7.8998,1557.8,1557.7,4.8259]
[1744384306619,4.692,1557.8,1557.7,6.11046]
[1744384306826,0.00963297,1558.0,1557.9,1.28439]
[1744384307224,1.28396,1558.5,1558.2,1.28407]
[1744384307426,4.692,1558.5,1558.4,1.28398]
[1744384307625,4.49166,1558.6,1558.4,1.28398]
[1744384307821,9.18352,1558.8,1558.5,4.8259]
[1744384308024,9.18352,1558.8,1558.6,1.28379]
[1744384308328,15.73036332,1558.8,1558.7,1.28373]
[1744384308524,15.73036332,1558.8,1558.5,4.83553297]
[1744384308525,12.52256332,1558.8,1558.6,1.28375]
[1744384308726,13.80623332,1558.8,1558.7,4.4817]
[1744384309324,12.52256332,1558.8,1558.7,5.76543]
[1744384309528,12.52256332,1558.8,1558.7,4.4817]
[1744384309727,12.52256332,1558.8,1558.7,5.76543]
[1744384310025,13.80621332,1558.8,1558.7,5.76543]
[1744384310826,13.80621332,1558.8,1558.7,4.4817]
[1744384311026,13.80621332,1558.8,1558.7,5.76543]
[1744384311531,12.52256332,1558.8,1558.7,5.76543]
[1744384311821,0.00963297,1558.9,1558.8,1.28365]
[1744384312027,0.00963297,1558.9,1558.8,8.25035]
[1744384312222,0.00963297,1558.9,1558.8,13.25035]
[1744384312420,0.00963297,1558.9,1558.8,54.05035]
[1744384312623,4.6533,1559.5,1559.4,1.28316]
[1744384312817,3.2078,1559.6,1559.5,1.28307]
[1744384313025,1.28307,1559.6,1559.4,1.2831]
[1744384313318,5.93637,1559.6,1559.5,5.66747]
[1744384313719,1.28327,1559.3,1559.1,5.937]
[1744384313918,4.49087,1559.5,1559.4,0.00963297]
[1744384314128,9.14417,1559.5,1559.4,0.00963297]
[1744384314523,9.14417,1559.5,1559.4,4.47873297]
[1744384315318,9.0197,1559.7,1559.4,4.47873297]
[1744384315530,6.05465,1559.6,1559.4,4.47873297]
[1744384315830,6.05465,1559.6,1559.4,5.76182297]
[1744384316030,4.7716,1559.6,1559.5,1.28307]
[1744384316230,3.2078,1559.7,1559.6,1.28299]
[1744384316530,4.49071,1559.7,1559.6,1.28299]
[1744384317028,1.28291,1559.7,1559.6,1.28299]
[1744384317228,1.28299,1559.6,1559.5,5.75211]
[1744384317430,4.7716,1559.6,1559.5,5.75211]
[1744384317724,4.7716,1559.6,1559.5,5.75217]
[1744384317938,6.05459,1559.6,1559.5,5.75217]
[1744384318228,4.7716,1559.6,1559.5,5.75217]
[1744384318617,4.7716,1559.6,1559.4,1.29275297]
[1744384318820,4.7716,1559.6,1559.5,1.28307]
[1744384319029,6.05459,1559.6,1559.5,1.28307]
[1744384319528,4.7716,1559.6,1559.5,1.28307]
[1744384319827,4.49077,1559.7,1559.6,1.28299]
[1744384320024,3.2078,1559.7,1559.6,1.28299]
[1744384320424,9.13329,1559.9,1559.8,1.28283]
[1744384320723,7.8505,1559.9,1559.6,1.28293]
[1744384320922,9.13328,1559.9,1559.7,4.4303]
[1744384321122,1.28283,1559.8,1559.7,5.71316]
[1744384321324,1.28283,1559.8,1559.7,4.4303]
[1744384321627,5.66993,1559.8,1559.7,5.71321]
[1744384321826,5.66993,1559.8,1559.7,4.4303]
[1744384322028,1.28307,1559.5,1559.4,7.21970297]
[1744384322328,4.49084,1559.6,1559.5,1.28307]
[1744384322532,8.87779,1559.8,1559.7,1.28291]
[1744384322720,1.28294,1559.7,1559.6,1.28292]
[1744384322923,7.5949,1559.8,1559.7,1.28291]
[1744384323123,3.2078,1559.8,1559.7,1.28291]
[1744384323836,7.9064,1560.2,1560.1,1.28258]
[1744384324131,7.9064,1560.2,1560.1,1.28252]
[1744384324132,1.28254,1560.2,1560.1,1.28252]
[1744384324327,5.82736,1560.3,1560.2,1.2825]
[1744384324636,1.28233,1560.5,1560.4,1.28233]
[1744384324826,5.82723,1560.5,1560.4,1.28233]
[1744384325025,1.28233,1560.4,1560.3,0.00963297]
[1744384325232,9.03503,1560.4,1560.3,0.00963297]
[1744384325537,9.03503,1560.4,1560.3,1.29205297]
[1744384326034,7.7527,1560.4,1560.3,1.29205297]
[1744384326230,7.7527,1560.4,1560.3,5.99135297]
[1744384326929,9.03503,1560.4,1560.3,5.99135297]
[1744384327133,7.7527,1560.4,1560.3,5.99135297]
[1744384327324,4.49013,1560.4,1560.3,5.99135297]
[1744384328232,1.28233,1560.4,1560.3,5.99135297]
[1744384328430,1.2821,1560.7,1560.6,1.28208]
[1744384329026,1.28217,1560.6,1560.5,4.5256]
[1744384329327,1.28195,1560.9,1560.8,1.28194]
[1744384329525,5.95412,1560.9,1560.8,1.28194]
[1744384329726,4.6722,1560.9,1560.8,1.282]
[1744384330034,5.95412,1560.9,1560.8,1.282]
[1744384330225,1.282,1560.8,1560.7,4.6262]
[1744384330535,1.28209,1560.7,1560.6,5.925]
[1744384330937,1.28217,1560.6,1560.5,5.90839]
[1744384331122,6.41324,1560.6,1560.3,9.08863297]
[1744384331432,4.49013,1560.4,1560.3,9.08865297]
[1744384331736,3.2078,1560.4,1560.3,9.08865297]
[1744384331921,4.49013,1560.4,1560.3,0.00963297]
[1744384332326,9.49013,1560.4,1560.3,1e-08]
[1744384332527,13.41993,1560.4,1560.3,1e-08]
[1744384336136,8.41993,1560.4,1560.3,1e-08]
[1744384339942,13.41993,1560.4,1560.3,1e-08]
[1744384340239,1.29190296,1560.5,1560.4,1.28233]
[1744384340439,4.48273296,1560.5,1560.4,6.07543]
[1744384340640,5.76498296,1560.5,1560.4,6.07543]
[1744384340838,5.76498296,1560.5,1560.4,4.7931]
[1744384341139,5.76498296,1560.5,1560.4,6.07543]
[1744384341333,5.76498296,1560.5,1560.4,4.7931]
[1744384341736,1.28233,1560.4,1560.3,1e-08]
[1744384341935,9.24723,1560.4,1560.3,1e-08]
[1744384342142,18.30383,1560.4,1560.3,1e-08]
[1744384342842,22.19033,1560.4,1560.3,1e-08]
[1744384343645,34.04633,1560.4,1560.3,1e-08]
[1744384344444,13.13373,1560.4,1560.3,1e-08]
[1744384345847,18.13373,1560.4,1560.3,1e-08]
[1744384346043,27.76363,1560.4,1560.3,1e-08]
[1744384346240,22.76363,1560.4,1560.3,1e-08]
[1744384346440,16.83963,1560.4,1560.3,1e-08]
[1744384346840,16.83963,1560.4,1560.3,1.28242001]
[1744384347049,9.24723,1560.4,1560.3,1.28242001]
[1744384347248,3.2078,1560.4,1560.3,1.28242001]
[1744384347545,1.29188296,1560.5,1560.4,1.28233]
[1744384347749,3.21743296,1560.5,1560.4,5.70873]
[1744384348047,0.00963296,1560.5,1560.4,9.74733]
[1744384348235,0.00963296,1560.5,1560.4,14.74733]
[1744384348638,6.40916,1561.1,1560.4,14.74733]
[1744384348639,103.75634794,1561.6,1560.6,1.28217]
[1744384348842,4.4896,1561.1,1560.9,1.28187]
[1744384349041,4.48959,1561.1,1560.7,14.221]
[1744384349238,7.6365,1561.3,1560.8,3.20499]
[1744384349438,8.91814,1561.3,1561.1,1.28168]
[1744384349636,1.28173,1561.2,1561.0,1.28179]
[1744384349839,1.28173,1561.2,1561.1,4.4264]
[1744384350247,5.71043,1561.2,1561.1,4.4264]
[1744384350850,5.71038,1561.2,1561.1,4.4264]
[1744384351147,4.48946,1561.3,1561.1,5.70816]
[1744384351449,4.48946,1561.3,1561.1,4.4264]
[1744384351746,4.48946,1561.3,1561.2,4.4439]
[1744384352243,4.48946,1561.3,1561.2,5.72558]
[1744384352447,4.48946,1561.3,1561.2,4.4439]
[1744384352643,0.51874842,1561.7,1561.2,12.6517]
[1744384352847,1.28118,1561.9,1561.4,3.2078]
[1744384353049,1.28118,1561.9,1561.5,4.4439]
[1744384353250,3.2078,1561.8,1561.6,1.28132]
[1744384353453,3.2078,1561.8,1561.7,4.4439]
[1744384353653,9.00528,1561.8,1561.7,4.4439]
[1744384354044,9.00528,1561.8,1561.5,1.28138]
[1744384354242,4.5163,1561.8,1561.6,1.28133]
[1744384354442,4.5163,1561.8,1561.7,1.28127]
[1744384354648,7.0192,1562.0,1561.9,1.2811]
[1744384354842,7.0192,1562.0,1561.6,3.7753]
[1744384355056,6.0251,1561.9,1561.8,0.00963297]
[1744384355354,13.0602,1561.9,1561.8,0.00963297]
[1744384356250,18.0602,1561.9,1561.8,0.00963297]
[1744384356452,23.9742,1561.9,1561.8,1e-08]
[1744384356751,3.2078,1562.0,1561.4,5.914]
[1744384356942,1.28122,1561.8,1561.6,1.28132]
[1744384357150,9.09067,1561.9,1561.7,1.28125]
[1744384357655,7.8095,1561.9,1561.7,1.28122]
[1744384357856,9.09061,1561.9,1561.7,1.28118]
[1744384358355,9.09061,1561.9,1561.6,0.00963297]
[1744384358654,4.48907,1561.7,1561.6,0.00963297]
[1744384359452,1.28163,1561.3,1561.1,4.0061]
[1744384359752,1.28176,1561.1,1561.0,3.8763]
[1744384359954,1.28176,1561.1,1560.9,5.69397]
[1744384360249,1.28156,1561.4,1561.2,1.28162]
[1744384360456,4.3839,1561.3,1561.1,1.28169]
[1744384360650,5.66553,1561.3,1561.2,5.69378]
[1744384360851,0.00963297,1561.5,1561.2,15.82395]
[1744384361055,0.00963297,1561.5,1561.4,1.28151]
[1744384361255,1.29106297,1561.5,1561.4,4.4121]
[1744384361460,1.29109297,1561.5,1561.3,5.25093]
[1744384361657,0.00963297,1561.5,1561.4,1.28151]
[1744384362046,1.29106297,1561.5,1561.4,4.4121]
[1744384362452,1.29106297,1561.5,1561.3,3.9694]
[1744384362653,4.3839,1561.4,1561.3,9.66303]
[1744384362854,0.00963297,1561.5,1561.4,1.28151]
[1744384363158,0.00963297,1561.5,1561.4,6.00361]
[1744384363350,0.00963297,1561.5,1561.4,11.00361]
[1744384363655,0.00963297,1561.5,1561.4,6.00361]
[1744384364359,1.29106297,1561.5,1561.4,4.7221]
[1744384364561,0.00963297,1561.5,1561.4,6.00361]
[1744384364951,0.51676621,1562.3,1561.4,15.6351]
[1744384365253,6.40956,1562.4,1561.9,1.28104]
[1744384365456,1.28094,1562.1,1562.0,4.7221]
[1744384365657,6.40955,1562.4,1562.0,4.7221]
[1744384365856,1.28077,1562.3,1562.0,4.7221]
[1744384366153,1.28088,1562.2,1562.0,6.01266092]
[1744384366358,1.28087,1562.2,1562.0,6.01267092]
[1744384366759,6.41908611,1562.4,1562.0,4.73170092]
[1744384366956,0.00952611,1562.4,1562.1,1.28094]
[1744384367259,1.28087,1562.2,1562.0,6.01266092]
[1744384367657,5.913,1562.3,1562.0,6.01266092]
[1744384367658,5.913,1562.3,1562.0,4.73170092]
[1744384368159,7.19383,1562.3,1562.1,1.28092]
[1744384368361,7.19383,1562.3,1562.2,4.8065]
[1744384369970,1.28094,1562.1,1562.0,0.00960092]
[1744384370155,1.28094,1562.1,1562.0,4.83300092]
[1744384370356,8.97799,1562.2,1562.0,6.11402092]
[1744384370556,3.2078,1562.2,1562.1,1.28094]
[1744384370762,4.48866,1562.2,1562.1,1.28094]
[1744384371067,4.48866,1562.2,1562.0,4.83300092]
[1744384371263,4.48866,1562.2,1562.1,1.28094]
[1744384371460,1.28094,1562.1,1562.0,6.11397092]
[1744384371662,1.28094,1562.1,1562.0,0.00960092]
[1744384371861,5.77024,1562.1,1562.0,0.00960092]
[1744384372865,1.28126,1561.8,1561.6,1.28129]
[1744384373159,1.28126,1561.8,1561.7,1.28127]
[1744384373364,1.28126,1561.8,1561.6,5.855]
[1744384373565,5.912,1562.0,1561.6,4.5737]
[1744384373763,5.69876,1561.9,1561.7,5.85497]
[1744384374065,1.28127,1561.7,1561.6,0.00960092]
[1744384374265,7.19227,1561.7,1561.6,0.00960092]
[1744384374458,7.19227,1561.7,1561.2,4.5737]
[1744384374459,1.28159,1561.3,1561.2,4.5737]
[1744384374659,1.28159,1561.3,1561.2,5.85538]
[1744384374859,1.28159,1561.3,1561.2,4.5737]
[1744384375055,0.00960092,1561.8,1561.6,1.28131]
[1744384375262,0.00960092,1561.8,1561.7,4.5894]
[1744384375467,0.00960092,1561.8,1561.7,5.87067]
[1744384376465,0.00960092,1561.8,1561.7,10.87067]
[1744384376856,0.00960092,1561.8,1561.7,5.87067]
[1744384378957,3.20051,1563.0,1561.9,3.2078]
[1744384379158,1.28061,1562.5,1562.4,3.2078]
[1744384380266,1.28069,1562.4,1562.3,0.00960092]
[1744384380460,10.84339,1562.4,1562.3,0.00960092]
[1744384380668,19.91379,1562.4,1562.3,0.00960092]
[1744384381071,14.91379,1562.4,1562.3,0.00960092]
[1744384381767,19.91379,1562.4,1562.3,0.00960092]
[1744384383168,14.91379,1562.4,1562.3,0.00960092]
[1744384383470,23.12159,1562.4,1562.3,0.00960092]
[1744384384165,23.12159,1562.4,1561.9,6.8821]
[1744384384166,1.28102,1562.0,1561.9,3.2078]
[1744384384468,5.909,1562.0,1561.9,8.8454]
[1744384384667,7.19002,1562.0,1561.9,7.5643]
[1744384384864,7.19002,1562.0,1561.9,8.8454]
[1744384385176,5.909,1562.0,1561.9,8.8454]
[1744384385368,7.19002,1562.0,1561.9,7.5643]
[1744384385566,1.28102,1562.0,1561.9,7.5643]
[1744384385770,4.0666,1562.2,1561.9,7.5643]
[1744384386066,1.28102,1562.0,1561.9,8.8454]
[1744384386578,1.28101,1562.1,1561.9,8.8454]
[1744384387173,1.2809,1562.2,1562.0,1.281]
[1744384387374,1.2809,1562.2,1562.1,4.5691]
[1744384388077,5.3453,1562.2,1562.1,4.5691]
[1744384388469,1.28102,1562.0,1561.9,3.2078]
[1744384388669,1.28102,1562.0,1561.9,7.7769]
[1744384388869,7.19002,1562.0,1561.9,7.7769]
[1744384389274,1.2811,1561.9,1561.8,0.00960092]
[1744384389578,3.2034,1561.6,1561.2,4.48942]
[1744384389779,3.2034,1561.6,1561.2,3.2078]
[1744384389780,1.28155,1561.4,1561.2,3.2078]
[1744384390077,1.28155,1561.4,1561.3,4.5691]
[1744384390279,5.35025,1561.4,1561.3,4.5691]
[1744384391380,1.28159,1561.3,1561.2,0.00960092]
[1744384391675,5.35029,1561.3,1561.2,0.00960092]
[1744384391869,1.28159,1561.3,1561.2,0.00960092]
[1744384392272,1.28159,1561.3,1561.2,4.58290092]
[1744384393778,5.35029,1561.3,1561.2,4.58290092]
[1744384396575,5.35029,1561.3,1561.2,7.79070092]
[1744384396880,5.35029,1561.3,1561.2,4.58290092]
[1744384397084,5.35029,1561.3,1561.2,0.00960092]
[1744384397281,1.28176,1561.1,1561.0,4.1675]
[1744384397479,1.28209,1560.7,1560.6,3.2078]
[1744384397676,7.19309,1560.7,1560.6,3.2078]
[1744384398677,1.28217,1560.6,1560.5,0.00960092]
[1744384398870,1.28242,1560.3,1560.2,24.46237511]
[1744384399076,7.19342,1560.3,1560.2,9.75144437]
[1744384399275,15.40122,1560.3,1560.2,2.62889786]
[1744384399471,12.19342,1560.3,1560.2,1.32291786]
[1744384399684,7.19342,1560.3,1560.2,1.32291786]
[1744384399884,7.19342,1560.3,1560.2,5.92811786]
[1744384400383,1.28242,1560.3,1560.2,5.92811786]
[1744384400981,5.92060092,1560.4,1560.2,5.92811786]
[1744384401284,1.28242,1560.3,1560.2,5.92811786]
[1744384402789,1.28242,1560.3,1560.2,4.6052]
[1744384403085,1.2825,1560.2,1560.1,3.21427543]
[1744384403383,1.2825,1560.2,1560.1,7.72237543]
[1744384403588,5.5671,1560.2,1560.1,7.72237543]
[1744384403787,10.5671,1560.2,1560.1,0.00647543]
[1744384403987,14.5078,1560.2,1560.1,5.43e-06]
[1744384405281,17.7156,1560.2,1560.1,5.43e-06]
[1744384405484,23.6476,1560.2,1560.1,5.43e-06]
[1744384408483,18.6476,1560.2,1560.1,5.43e-06]
[1744384408883,15.4398,1560.2,1560.1,5.43e-06]
[1744384409281,18.6476,1560.2,1560.1,5.43e-06]
[1744384409588,15.4398,1560.2,1560.1,5.43e-06]
[1744384409988,7.2145,1560.2,1560.1,5.43e-06]
[1744384410690,1.2825,1560.2,1560.1,5.43e-06]
[1744384411291,5.5666,1560.2,1560.1,5.43e-06]
[1744384412192,1.2825,1560.2,1560.1,5.43e-06]
[1744384414390,5.5661,1560.2,1560.1,5.43e-06]
[1744384416396,1.2825,1560.2,1560.1,5.43e-06]
[1744384416790,1.2825,1560.2,1560.1,4.28930543]
[1744384417297,7.1975,1560.2,1560.1,4.28930543]
[1744384418695,7.1975,1560.2,1560.1,9.28930543]
[1744384419200,7.1975,1560.2,1560.1,4.28930543]
[1744384421598,0.00960092,1560.4,1560.1,9.28930543]
[1744384421800,1.28244,1560.3,1560.2,8.2171]
[1744384423397,0.00960092,1560.4,1560.2,8.2171]
[1744384423593,1.29193092,1560.4,1560.3,7.5272]
[1744384423994,0.00960092,1560.4,1560.3,12.5272]
[1744384424194,1.29193092,1560.4,1560.3,12.5272]
[1744384424591,1.29193092,1560.4,1560.3,9.3194]
[1744384424805,1.29193092,1560.4,1560.3,4.3194]
[1744384425200,1.29193092,1560.4,1560.3,7.5272]
[1744384426200,1.29193092,1560.4,1560.3,4.3194]
[1744384427308,1.2825,1560.2,1560.1,3.20780543]
[1744384427505,1.28283,1559.8,1559.7,7.1466]
[1744384428000,1.28283,1559.8,1559.7,3.9388]
[1744384428403,1.28307,1559.5,1559.4,4.0003]
[1744384428599,7.19707,1559.5,1559.4,4.0003]
[1744384428904,1.28332,1559.2,1559.1,3.2078]
[1744384429104,1.2833,1559.3,1559.1,7.2081]
[1744384429298,1.28328,1559.3,1559.1,8.4915]
[1744384429504,1.28324,1559.4,1559.1,13.49145]
[1744384429707,1.28324,1559.4,1559.3,3.2078]
[1744384431012,1.28327,1559.3,1559.1,8.4915]
[1744384431208,1.28327,1559.3,1559.1,7.2081]
[1744384431402,1.28331,1559.3,1559.1,7.2081]
[1744384431910,12.32957,1559.5,1559.1,7.2081]
[1744384432105,1.28322,1559.4,1559.1,7.2081]
[1744384432404,1.28322,1559.4,1559.3,3.2078]
[1744384433213,1.28322,1559.4,1559.3,6.8033]
[1744384434615,1.28322,1559.4,1559.3,3.5955]
[1744384434807,1.28322,1559.4,1559.3,6.8033]
[1744384435807,5.914,1559.5,1559.3,8.08654]
[1744384435808,7.19714,1559.5,1559.3,8.08654]
[1744384436012,7.19714,1559.5,1559.4,4.1958]
[1744384439411,1.28332,1559.2,1559.1,3.2078]
[1744384439918,7.19632,1559.2,1559.1,3.2078]
[1744384440114,1.28357,1558.9,1558.8,10.6213]
[1744384440410,1.28355,1559.0,1558.8,10.6213]
[1744384440611,1.28355,1559.0,1558.8,11.9049]
[1744384441014,1.28346,1559.1,1558.9,1.28352]
[1744384441203,1.28346,1559.1,1559.0,3.2078]
[1744384441808,5.913,1559.2,1559.0,3.2078]
[1744384442106,7.19633,1559.2,1559.0,9.4912]
[1744384442316,1.28357,1558.9,1558.8,10.6213]
[1744384442518,1.28357,1558.9,1558.8,15.2153]
[1744384442808,1.28355,1559.0,1558.8,16.49895]
[1744384443007,1.28325,1559.3,1559.2,1.28331]
[1744384443211,1.2832,1559.4,1559.2,3.2078]
[1744384443410,1.2832,1559.4,1559.3,8.4396]
[1744384443814,1.2832,1559.4,1559.3,13.4396]
[1744384444007,9.13027092,1559.6,1559.3,12.2324]
[1744384444208,1.28307,1559.5,1559.4,4.594]
[1744384444409,1.28307,1559.5,1559.4,7.8018]
[1744384444622,1.28307,1559.5,1559.4,3.2078]
[1744384444808,5.76747,1559.5,1559.4,3.2078]
[1744384445110,1.28324,1559.3,1559.2,3.2078]
[1744384445308,1.28324,1559.3,1559.2,7.641]
[1744384445511,7.19624,1559.3,1559.2,7.641]
[1744384446112,14.1208,1559.3,1558.9,7.641]
[1744384446319,1.28348,1559.0,1558.9,4.4332]
[1744384446512,3.20894,1558.9,1558.6,3.2078]
[1744384446815,1.28378,1558.7,1558.6,7.641]
[1744384447413,1.2839,1558.5,1558.4,21.70523074]
[1744384447720,1.2839,1558.5,1558.4,26.13843074]
[1744384448416,1.2839,1558.5,1558.4,17.91873074]
[1744384448714,1.2839,1558.5,1558.4,22.30003074]
[1744384449111,1.2839,1558.5,1558.4,19.09223074]
[1744384449419,1.2839,1558.5,1558.4,14.71093074]
[1744384450417,1.2839,1558.5,1558.4,19.09223074]
[1744384450826,6.2839,1558.5,1558.4,14.71093074]
[1744384451016,1.2839,1558.5,1558.4,14.71093074]
[1744384451215,5.7975,1558.5,1558.4,19.09223074]
[1744384451517,1.28388,1558.6,1558.4,7.5891]
[1744384451821,1.2839,1558.5,1558.4,4.3813]
[1744384452213,1.2839,1558.5,1558.2,6.911]
[1744384452214,1.28406,1558.3,1558.2,6.911]
[1744384452419,1.28406,1558.3,1558.2,11.3548]
[1744384452817,5.915,1558.4,1558.2,11.3548]
[1744384453018,1.28394,1558.5,1558.3,5.72786]
[1744384453217,1.28384,1558.6,1558.4,8.93556]
[1744384453415,1.28384,1558.6,1558.5,4.4438]
[1744384454120,5.63444,1558.6,1558.5,4.4438]
[1744384455123,1.2839,1558.5,1558.4,3.2078]
[1744384455323,5.7518,1558.5,1558.4,3.2078]
[1744384455620,1.28398,1558.4,1558.3,4.3867]
[1744384457016,1.28394,1558.5,1558.3,5.67074]
[1744384457218,1.2839,1558.5,1558.4,3.2078]
[1744384457524,1.2839,1558.5,1558.4,7.4828]
[1744384457822,1.2839,1558.5,1558.4,4.275]
[1744384462026,5.5038,1558.5,1558.4,4.275]
[1744384462629,1.28406,1558.3,1558.2,6.911]
[1744384464126,1.28406,1558.3,1558.2,11.0861]
[1744384465520,3.20955,1558.6,1558.2,11.0861]
[1744384465829,1.2839,1558.5,1558.4,4.49176]
[1744384467424,7.19879,1558.7,1558.6,1.28381]
[1744384467628,7.19873,1558.7,1558.6,3.2078]
[1744384468130,7.19873,1558.7,1558.6,12.58351]
[1744384468319,5.915,1558.7,1558.6,12.58351]
[1744384468722,3.20956,1558.6,1558.2,3.2078]
[1744384468927,3.21016,1558.3,1558.0,3.2078]
[1744384469123,1.28414,1558.2,1558.1,4.2758]
[1744384469637,1.28447,1557.8,1557.7,3.8161]
[1744384470129,1.28447,1557.8,1557.7,5.10066]
[1744384470517,1.28447,1557.8,1557.7,8.3561]
[1744384473525,1.28447,1557.8,1557.7,9.64066]
[1744384473732,1.28447,1557.8,1557.7,8.3561]
[1744384474128,1.28447,1557.8,1557.7,4.54]
[1744384474333,5.75477,1557.8,1557.7,4.54]
[1744384474527,1.28472,1557.5,1557.4,7.1055]
[1744384474929,1.28472,1557.5,1557.4,8.3903]
[1744384475835,3.21119,1557.8,1557.4,7.1055]
[1744384476035,1.28456,1557.7,1557.6,4.49242]
[1744384476331,1.28464,1557.6,1557.5,4.1582]
[1744384476537,1.2848,1557.4,1557.3,3.9417]
[1744384476740,1.2848,1557.4,1557.3,3.92864921]
[1744384477234,1.2848,1557.4,1557.3,8.08684921]
[1744384477532,1.2848,1557.4,1557.3,11.29464921]
[1744384477729,1.28479,1557.5,1557.3,12.57949921]